bitfinex/quotes_ETHUSD_20240927
["timestamp","ask_amount","ask_price","bid_price","bid_amount"]
[1727457035365,3.968116,2716.5,2716.0,4.37763172]
[1727457035562,4.721216,2716.5,2716.0,4.37763172]
[1727457035970,4.721216,2716.5,2716.0,8.05951172]
[1727457037214,8.402426,2716.5,2716.0,8.05951172]
[1727457037368,4.721216,2716.5,2716.0,8.05951172]
[1727457037905,3.68156,2716.3,2715.7,3.68219]
[1727457038568,3.68156,2716.3,2715.7,7.36438]
[1727457038811,3.68143,2716.4,2715.9,3.68198]
[1727457039012,3.7531,2716.5,2716.0,3.68188]
[1727457039283,3.0,2716.7,2716.0,8.05941172]
[1727457039494,3.0,2716.5,2716.0,8.05941172]
[1727457040018,6.68122,2716.5,2716.0,4.37763172]
[1727457040196,6.68122,2716.5,2716.0,8.05941172]
[1727457041727,0.7805,2716.8,2716.4,4.37763172]
[1727457041926,3.67934,2717.9,2716.4,4.37763172]
[1727457041927,0.799,2717.1,2716.4,4.37763172]
[1727457042082,0.30269251,2717.0,2716.7,3.68087]
[1727457042415,0.799,2717.1,2716.7,3.68087]
[1727457042789,4.47942,2717.1,2716.6,3.68095]
[1727457042988,0.30268385,2717.0,2716.6,3.68095]
[1727457043202,3.0,2717.0,2716.6,3.68095]
[1727457043381,4.246932,2717.1,2716.7,3.68091]
[1727457043580,0.30267246,2717.0,2716.7,3.68091]
[1727457043777,4.246932,2717.1,2716.7,3.68091]
[1727457044002,1.09539668,2717.0,2716.5,3.68108]
[1727457044220,0.7927252,2717.0,2716.5,3.68108]
[1727457044714,0.7927252,2717.0,2716.6,3.68105]
[1727457045019,0.87201172,2716.9,2716.6,3.68105]
[1727457045323,4.55268172,2716.9,2716.4,4.37763172]
[1727457045477,4.55268172,2716.9,2716.3,3.68139]
[1727457045681,0.83454069,2716.8,2716.3,3.68139]
[1727457045916,4.51542069,2716.8,2716.2,7.36304]
[1727457046231,3.68094,2716.7,2716.2,3.68151]
[1727457046429,3.68108,2716.6,2716.3,3.55772166]
[1727457046739,0.81963607,2716.6,2716.3,3.55772166]
[1727457046892,4.47952,2717.1,2716.3,3.55772166]
[1727457047095,4.47952,2717.1,2715.7,3.68225]
[1727457047096,3.30266834,2717.0,2716.7,3.55772166]
[1727457047298,3.0,2717.0,2716.7,3.55772166]
[1727457047496,0.747952,2716.9,2716.7,3.55772166]
[1727457047902,3.799,2717.1,2716.7,3.55772166]
[1727457048111,0.30263977,2717.0,2716.8,3.68079]
[1727457048303,4.47939,2717.1,2716.8,0.06595807]
[1727457048634,4.05055767,2717.0,2716.7,3.55772166]
[1727457048814,3.0,2717.0,2716.7,7.23852166]
[1727457049024,0.799,2717.1,2716.8,0.0657769]
[1727457049219,0.799,2717.1,2716.7,7.23852166]
[1727457049433,0.799,2717.1,2716.8,0.0657769]
[1727457049732,1.546912,2717.1,2716.8,3.68071]
[1727457049941,1.546912,2717.1,2716.9,3.74637649]
[1727457050140,0.769,2717.4,2717.0,7.23818166]
[1727457050436,0.769,2717.4,2717.3,3.55772166]
[1727457050606,0.769,2717.4,2717.1,7.30371732]
[1727457050806,0.769,2717.4,2717.3,0.06562485]
[1727457051007,1.213873,2717.4,2717.3,0.06562485]
[1727457051209,0.444873,2717.4,2717.3,3.55772166]
[1727457051409,0.8117,2717.7,2717.3,7.30346651]
[1727457051608,3.8117,2717.7,2717.3,7.30346651]
[1727457051832,0.749123,2717.6,2717.5,3.55772166]
[1727457052038,0.749123,2717.6,2717.5,3.6232857]
[1727457053343,0.8117,2717.7,2717.5,3.6232857]
[1727457054707,3.67923,2718.0,2717.5,3.6232857]
[1727457054708,0.7986,2718.0,2717.5,3.6232857]
[1727457054946,4.47734,2718.4,2717.9,7.23702166]
[1727457055151,4.47734,2718.4,2718.3,3.55772166]
[1727457055648,4.47734,2718.4,2718.3,3.6221123]
[1727457055855,0.7986,2718.7,2718.3,7.3008223]
[1727457056009,4.47684,2718.7,2718.5,3.55772166]
[1727457056347,0.7986,2718.7,2718.6,0.0642995]
[1727457056857,3.67796,2718.9,2718.6,0.0642995]
[1727457057010,0.446196,2718.8,2718.7,3.55772166]
[1727457057349,3.6777,2719.1,2718.7,3.62199079]
[1727457057656,0.36777,2719.0,2718.7,3.62199079]
[1727457058111,0.36777,2719.0,2718.9,3.55772166]
[1727457058309,0.784,2719.3,2718.9,3.55772166]
[1727457058538,3.67762,2719.2,2718.9,3.62193004]
[1727457058843,0.446162,2719.1,2718.9,3.62193004]
[1727457059009,3.0,2719.1,2718.9,3.62193004]
[1727457059211,0.784,2719.3,2718.9,3.62193004]
[1727457059411,4.46141,2719.3,2719.2,3.55772166]
[1727457059645,3.67773,2719.1,2718.8,3.55772166]
[1727457059853,3.67792,2719.0,2718.8,3.55772166]
[1727457061364,3.0,2718.9,2718.2,3.55772166]
[1727457061565,3.67857,2718.5,2718.2,3.55772166]
[1727457062437,3.67857,2718.5,2717.9,8.05159859]
[1727457063157,3.67871,2718.4,2717.9,8.05172859]
[1727457063360,0.367857,2718.4,2718.0,0.0644818]
[1727457064148,4.046507,2718.4,2718.0,0.0644818]
[1727457064457,0.7793,2718.3,2718.0,0.0644818]
[1727457065529,4.91811271,2718.3,2718.0,0.0644818]
[1727457065861,3.67892,2718.2,2717.8,3.67939]
[1727457066065,3.67892,2718.2,2717.9,0.06315455]
[1727457067259,3.67912,2718.1,2717.6,3.67971]
[1727457067425,0.05653788,2718.0,2717.7,0.06327754]
[1727457067631,0.7775,2717.9,2717.2,3.68022]
[1727457067841,0.7775,2717.9,2717.3,0.06313914]
[1727457067842,0.05653788,2717.8,2717.3,0.06313914]
[1727457068140,3.67986,2717.5,2717.0,4.37242859]
[1727457068339,3.67986,2717.5,2716.9,3.68066]
[1727457068340,7.45736,2717.5,2717.4,0.06310873]
[1727457068544,7.45736,2717.5,2716.7,8.05328859]
[1727457068545,3.68027,2717.2,2716.7,8.05328859]
[1727457068767,3.0,2717.2,2716.7,3.68086]
[1727457068993,3.0,2717.2,2716.8,0.06329119]
[1727457069145,3.67367679,2717.2,2716.8,0.06329119]
[1727457069488,7.35399679,2717.2,2716.9,0.06326078]
[1727457069788,3.0,2717.4,2716.9,0.06326078]
[1727457069990,6.046296,2718.6,2716.2,3.68153]
[1727457069991,3.0,2717.6,2717.3,3.68004]
[1727457070171,3.7775,2717.8,2717.4,3.6799]
[1727457070373,3.7775,2717.8,2717.4,0.06310873]
[1727457070589,3.67966,2717.7,2717.4,0.06310873]
[1727457070748,3.67986,2717.5,2716.9,3.68059]
[1727457070945,3.67986,2717.5,2716.7,3.68093]
[1727457070946,3.6802,2717.3,2716.7,3.68093]
[1727457071151,3.68037,2717.2,2717.0,0.06323036]
[1727457071381,4.126157,2717.2,2716.6,3.68096]
[1727457071586,4.126157,2717.2,2717.1,0.06319995]
[1727457071891,3.6804,2717.1,2716.5,3.6812]
[1727457072072,3.68054,2717.0,2716.6,3.68106]
[1727457072632,4.126057,2717.2,2716.6,3.68096]
[1727457072768,3.68027,2717.2,2716.6,3.68096]
[1727457072952,11.13767,2717.4,2716.6,3.68096]
[1727457073293,3.0,2717.2,2716.8,3.68078]
[1727457073456,6.73680788,2717.2,2716.6,3.68096]
[1727457073656,6.68027,2717.2,2716.6,3.68096]
[1727457073889,3.68047,2717.1,2716.6,3.68096]
[1727457074596,3.0,2717.2,2716.8,3.68078]
[1727457074999,3.0,2717.3,2716.8,3.68078]
[1727457075202,3.0,2717.3,2716.9,3.68065]
[1727457075595,6.68013,2717.3,2716.9,3.68065]
[1727457076161,6.68013,2717.3,2716.6,3.68096]
[1727457076162,6.68013,2717.3,2716.8,3.68079]
[1727457076395,3.68027,2717.2,2716.6,7.3619]
[1727457076567,3.68027,2717.2,2716.6,3.68094]
[1727457076773,3.68027,2717.2,2716.7,3.68085]
[1727457077077,7.36062,2717.2,2716.7,3.68085]
[1727457077279,4.794053,2717.2,2716.7,3.68085]
[1727457077490,3.68039,2717.1,2716.6,3.68106]
[1727457078011,3.0,2717.3,2716.4,8.05372859]
[1727457078310,3.0,2717.3,2716.9,3.68061]
[1727457078679,3.0,2717.3,2717.0,0.06396576]
[1727457079085,6.68013,2717.3,2717.0,0.06396576]
[1727457079396,3.68026,2717.2,2717.0,0.06396576]
[1727457080085,3.0,2717.3,2717.1,0.06393535]
[1727457080286,3.7775,2717.4,2717.1,0.06393535]
[1727457080474,0.7775,2717.4,2716.8,3.68071]
[1727457080670,4.4575,2717.4,2716.9,3.74462618]
[1727457080871,3.68012,2717.3,2716.9,0.06399618]
[1727457082382,0.7775,2717.4,2716.9,0.13760075]
[1727457082634,3.0,2717.7,2717.3,3.68006]
[1727457083108,4.46384,2717.8,2717.4,0.0622278]
[1727457083973,3.67925,2718.0,2717.5,3.6798]
[1727457084178,0.7599,2718.1,2717.4,4.43465639]
[1727457084410,3.67946,2717.8,2717.6,0.062167]
[1727457084707,3.6793,2718.0,2717.7,0.0621366]
[1727457084911,3.67929,2718.0,2717.7,0.0621366]
[1727457085213,3.67929,2718.0,2717.5,3.55436798]
[1727457085506,3.67929,2718.0,2717.5,8.32552478]
[1727457085681,3.67899,2718.2,2717.8,3.55436798]
[1727457086087,3.67899,2718.2,2717.9,0.06163448]
[1727457086319,3.67905,2718.1,2717.9,0.06163448]
[1727457086975,3.67899,2718.2,2717.9,0.06163448]
[1727457087319,4.422269,2718.2,2717.9,0.06163448]
[1727457087474,8.101299,2718.2,2717.9,0.06163448]
[1727457087718,3.67884,2718.3,2718.0,3.55436798]
[1727457087915,3.0,2718.2,2718.0,3.55436798]
[1727457088173,3.0,2718.2,2718.1,0.06174336]
[1727457088316,6.6789,2718.2,2718.1,0.06174336]
[1727457088624,3.67912,2718.1,2717.8,3.55436798]
[1727457088829,1.111154,2718.2,2717.8,3.55436798]
[1727457089040,3.67898,2718.2,2717.8,3.55436798]
[1727457089419,3.67906,2718.1,2717.8,3.55436798]
[1727457089623,7.3582,2718.1,2717.8,3.55436798]
[1727457089958,3.67906,2718.1,2717.8,3.55436798]
[1727457090159,3.67919,2718.0,2717.8,3.55436798]
[1727457090328,3.67919,2718.0,2717.5,3.55436798]
[1727457090329,3.73572788,2718.0,2717.5,3.55436798]
[1727457090512,3.73572788,2718.0,2717.4,3.67997]
[1727457090513,0.8163,2717.9,2717.4,3.67997]
[1727457090713,0.8163,2717.9,2717.5,3.67983]
[1727457091361,0.8163,2717.9,2717.5,7.23419798]
[1727457091663,3.67945,2717.8,2717.5,3.55436798]
[1727457092162,3.67961,2717.7,2717.5,3.55436798]
[1727457092340,3.68003,2717.4,2716.9,3.55436798]
[1727457092527,0.368003,2717.4,2716.9,7.23500798]
[1727457092852,3.68,2717.4,2716.9,7.23500798]
[1727457093055,3.68012,2717.3,2716.9,3.55436798]
[1727457093357,3.68012,2717.3,2717.0,0.06221352]
[1727457095037,4.482,2717.4,2717.0,0.06221352]
[1727457095038,4.482,2717.4,2717.1,3.55436798]
[1727457095421,3.6802,2717.3,2717.2,0.0621527]
[1727457095613,3.6802,2717.3,2716.9,3.55436798]
[1727457095815,3.6803,2717.2,2716.9,3.55436798]
[1727457096112,3.6803,2717.2,2717.0,0.06221352]
[1727457096547,3.6803,2717.2,2716.7,7.23517798]
[1727457096749,3.6803,2717.2,2717.1,0.06218311]
[1727457096953,0.81625,2717.2,2716.8,3.68079]
[1727457097257,0.81625,2717.2,2717.1,0.06251127]
[1727457097258,3.68027,2717.2,2717.1,0.06251127]
[1727457097460,3.68027,2717.2,2716.8,3.68079]
[1727457097952,3.68027,2717.2,2716.9,0.06282105]
[1727457098330,3.68027,2717.2,2716.7,7.23528798]
[1727457098531,3.68027,2717.2,2717.0,0.06279063]
[1727457098712,3.68027,2717.2,2716.7,7.23523798]
[1727457098943,0.802,2717.4,2717.1,0.06276022]
[1727457099148,3.68013,2717.3,2716.8,3.68071]
[1727457099354,6.68013,2717.3,2717.2,0.06272981]
[1727457099581,0.802,2717.4,2717.0,7.23487798]
[1727457099582,3.67999,2717.4,2717.0,7.23487798]
[1727457099787,3.67999,2717.4,2717.2,0.06272981]
[1727457100083,6.67999,2717.4,2717.3,0.06269941]
[1727457100284,3.67999,2717.4,2717.0,7.23487798]
[1727457100457,3.67999,2717.4,2717.1,0.06276022]
[1727457100662,7.36005,2717.4,2717.1,0.06276022]
[1727457100847,3.67999,2717.4,2717.1,0.06276022]
[1727457101851,3.68021,2717.3,2717.1,0.06276022]
[1727457102247,3.67999,2717.4,2717.1,0.06276022]
[1727457102481,7.36007,2717.4,2717.1,0.06276022]
[1727457102706,3.68015,2717.3,2717.1,0.06276022]
[1727457102872,4.416164,2717.3,2717.1,0.06276022]
[1727457103059,3.68025,2717.2,2717.1,0.06276022]
[1727457103588,4.416134,2717.3,2717.1,0.06276022]
[1727457103747,3.68012,2717.3,2717.1,0.06276022]
[1727457104485,3.68025,2717.2,2717.1,0.06276022]
[1727457107486,3.98328591,2717.2,2717.1,0.06276022]
[1727457107694,4.73828591,2717.2,2717.1,0.06276022]
[1727457108289,1.05803591,2717.2,2717.1,0.06276022]
[1727457108592,0.30309851,2717.2,2717.1,0.06276022]
[1727457111900,0.30309851,2717.2,2716.7,3.55436798]
[1727457111901,3.68052,2717.1,2716.7,3.55436798]
[1727457112303,0.30337965,2717.0,2716.7,3.55436798]
[1727457112794,3.98390965,2717.0,2716.6,3.68106]
[1727457112971,0.30337965,2716.9,2716.6,3.68106]
[1727457113171,0.30337965,2716.9,2716.7,3.68092]
[1727457113371,3.68041,2717.1,2716.7,3.68092]
[1727457113372,0.30337965,2716.8,2716.7,3.68092]
[1727457113890,3.68101,2716.7,2716.2,3.6816]
[1727457114092,0.30337965,2716.6,2716.2,3.68154]
[1727457114263,3.68087,2716.8,2716.2,3.68154]
[1727457114264,0.7793,2716.9,2716.5,3.55436798]
[1727457114459,0.30358636,2716.8,2716.5,7.30917549]
[1727457114664,0.30358636,2716.7,2716.6,3.68101]
[1727457115174,4.45997,2716.9,2716.5,3.55436798]
[1727457115486,3.6811,2716.6,2716.2,3.68161]
[1727457116171,0.30356064,2716.5,2716.2,3.68161]
[1727457116505,0.30356064,2716.5,2715.8,7.23641798]
[1727457116796,3.0,2716.2,2715.8,3.68205]
[1727457116999,0.30353368,2716.1,2715.8,3.68205]
[1727457117200,3.0,2716.2,2715.8,3.68205]
[1727457117405,0.30345467,2716.1,2715.8,7.23641798]
[1727457117759,3.0,2716.2,2715.8,7.23641798]
[1727457117903,0.30345424,2716.1,2715.8,7.23641798]
[1727457118101,0.30345424,2716.1,2715.0,3.68323]
[1727457118102,1.10085424,2716.0,2715.4,7.23696798]
[1727457118308,3.68219,2715.8,2715.4,7.23696798]
[1727457119017,0.7974,2716.0,2714.9,7.23762798]
[1727457119018,3.68244,2715.6,2714.9,7.23762798]
[1727457119302,0.7974,2715.6,2715.3,3.55436798]
[1727457119517,3.68197,2716.0,2715.5,3.55436798]
[1727457119518,3.7974,2715.9,2715.5,3.55436798]
[1727457119806,0.30314851,2715.8,2715.5,7.23682798]
[1727457120014,0.7974,2715.9,2715.5,3.55436798]
[1727457120305,0.30312997,2715.8,2715.3,3.55436798]
[1727457120515,0.7974,2715.9,2715.4,3.68267]
[1727457120669,0.30312977,2715.8,2715.4,3.68267]
[1727457121011,0.7974,2715.9,2715.2,3.68294]
[1727457121308,7.36448,2715.8,2715.2,3.68288]
[1727457121514,3.68223,2715.8,2715.2,3.68288]
[1727457121813,3.68223,2715.8,2715.3,3.68282]
[1727457122274,3.68223,2715.8,2715.2,3.68288]
[1727457122479,3.68243,2715.6,2715.0,3.68311]
[1727457122736,3.68243,2715.6,2715.0,7.36626]
[1727457122891,3.68243,2715.6,2715.1,3.6831]
[1727457123085,3.68243,2715.6,2715.2,0.056835]
[1727457123304,4.45376,2715.5,2715.2,0.056835]
[1727457123479,4.45376,2715.5,2714.9,3.68334]
[1727457123819,4.45376,2715.5,2715.0,0.05689591]
[1727457124024,3.73930788,2715.4,2715.0,0.05689591]
[1727457124197,0.45105079,2715.3,2715.0,0.05689591]
[1727457124388,3.68277,2715.4,2714.9,3.68329]
[1727457124592,3.68296,2715.2,2715.1,0.05760166]
[1727457124790,0.8164,2715.3,2715.0,0.05763212]
[1727457124998,6.68307,2715.2,2715.1,0.05760166]
[1727457125408,3.0,2715.2,2714.7,7.23799798]
[1727457125607,8.18217,2715.3,2715.1,0.05643253]
[1727457125608,0.8164,2715.3,2715.1,0.05643253]
[1727457125826,0.8164,2715.3,2714.9,7.23761798]
[1727457126124,3.8164,2715.6,2715.2,3.68294]
[1727457126530,3.6819,2716.0,2715.5,3.55436798]
[1727457126693,0.8164,2716.4,2715.3,3.61073961]
[1727457126694,0.8164,2715.8,2715.3,3.61073961]
[1727457126889,0.8164,2715.8,2715.5,3.68243]
[1727457127099,3.68152,2716.3,2715.6,7.29294827]
[1727457127100,0.8164,2716.3,2715.6,7.29294827]
[1727457127332,0.8164,2716.3,2715.9,3.68196]
[1727457127590,0.8164,2716.3,2715.9,7.36385]
[1727457127814,0.8164,2716.3,2716.0,0.05615853]
[1727457127990,5.315789,2716.3,2716.0,0.05615853]
[1727457128200,3.68171,2716.2,2715.6,7.23675798]
[1727457128417,6.68171,2716.2,2716.1,0.0561281]
[1727457128598,7.49967,2716.2,2715.6,7.23675798]
[1727457128796,7.49967,2716.2,2716.1,0.0561281]
[1727457128797,3.81796,2716.2,2716.1,0.0561281]
[1727457129013,7.49957,2716.2,2715.7,3.68221]
[1727457129292,3.81796,2716.2,2715.7,3.68221]
[1727457129786,7.49964,2716.2,2715.8,0.0562194]
[1727457129991,7.49964,2716.2,2715.7,3.68221]
[1727457130240,7.49964,2716.2,2715.9,0.05618897]
[1727457130414,1.199753,2716.1,2715.8,0.0562194]
[1727457130615,6.68168,2716.2,2716.0,0.05615853]
[1727457130822,6.68168,2716.2,2715.7,3.68221]
[1727457131132,3.8164,2716.3,2716.1,0.0561281]
[1727457131306,0.8164,2716.3,2715.9,3.68189]
[1727457131505,0.8164,2716.3,2716.0,3.73799853]
[1727457132615,4.43835,2716.6,2716.1,3.68174]
[1727457133016,4.43835,2716.6,2716.2,0.05609767]
[1727457133295,1.20723748,2716.9,2716.6,3.68098]
[1727457133634,1.20723748,2716.9,2716.7,3.73685555]
[1727457133928,3.68027,2717.2,2716.8,3.55436798]
[1727457133929,0.7638,2717.2,2716.8,3.55436798]
[1727457134141,0.7638,2717.2,2716.7,0.05594555]
[1727457134142,0.7886,2717.6,2717.1,3.68032]
[1727457134431,0.7886,2717.6,2716.9,3.68054]
[1727457134432,3.67999,2717.4,2716.9,3.68054]
[1727457134726,3.67999,2717.4,2717.2,0.05523841]
[1727457134942,3.67999,2717.4,2716.9,3.68054]
[1727457134943,0.7936,2717.2,2716.7,3.6809]
[1727457135093,4.47393,2717.2,2716.6,3.68107]
[1727457135296,0.447393,2717.1,2716.7,7.23527798]
[1727457135494,3.0,2717.5,2716.8,3.6807]
[1727457135792,3.0,2717.5,2716.7,3.55436798]
[1727457135793,3.7936,2717.5,2716.7,3.55436798]
[1727457136032,3.67924,2718.0,2716.1,11.0317]
[1727457136033,3.67949,2717.8,2717.3,3.55436798]
[1727457136195,0.7593,2717.8,2717.4,3.67997]
[1727457136558,2.0,2718.6,2717.6,3.67969]
[1727457136559,0.7593,2718.1,2717.6,3.67969]
[1727457136763,3.67917,2718.0,2717.5,3.55436798]
[1727457136920,3.67944,2717.8,2717.3,3.55436798]
[1727457137258,3.67944,2717.8,2717.2,3.68017]
[1727457137557,0.8134,2717.7,2717.2,3.68017]
[1727457137775,4.129004,2717.6,2717.0,7.23480798]
[1727457138323,3.67992,2717.5,2717.1,0.05526882]
[1727457138530,4.4608824,2717.4,2716.8,3.68071]
[1727457138840,7.18556188,2717.6,2716.9,0.05532965]
[1727457139037,10.41612788,2717.6,2717.0,3.6805]
[1727457139353,10.35959,2717.6,2717.0,3.73579923]
[1727457139558,3.0,2717.4,2717.0,3.73579923]
[1727457140344,6.73654788,2717.4,2717.0,0.05529923]
[1727457140538,6.73654788,2717.4,2716.9,3.68066]
[1727457140831,0.78538469,2717.3,2717.0,3.73569923]
[1727457141030,6.67985,2717.5,2717.0,3.73569923]
[1727457141362,0.8134,2717.7,2717.3,3.68002]
[1727457141656,0.8235,2718.0,2717.6,3.67971]
[1727457141827,0.8235,2718.0,2717.6,3.67964]
[1727457142026,0.8235,2718.0,2717.7,0.0550864]
[1727457142464,0.8235,2718.0,2717.7,3.7346564]
[1727457142465,0.450256,2717.9,2717.7,3.7346564]
[1727457143026,0.8235,2718.0,2717.7,3.7346564]
[1727457143472,4.50268,2718.0,2717.7,0.0550864]
[1727457143623,0.8235,2718.0,2717.7,0.0550864]
[1727457143826,0.8235,2718.0,2717.7,3.7346564]
[1727457144062,0.8235,2718.0,2717.7,7.4142264]
[1727457144063,0.38235,2717.9,2717.7,7.4142264]
[1727457144259,0.38235,2717.9,2717.8,3.67944]
[1727457144681,3.67897,2718.2,2717.8,3.73449601]
[1727457144841,3.67897,2718.2,2717.8,0.05505601]
[1727457145468,7.49667,2718.3,2717.8,3.73447601]
[1727457145778,0.74966,2718.2,2717.8,3.73443601]
[1727457145942,0.74966,2718.2,2717.8,3.67938]
[1727457146266,0.74966,2718.2,2717.9,3.67927]
[1727457146576,0.456756,2718.1,2717.9,3.67927]
[1727457146782,0.456756,2718.1,2718.0,0.05378368]
[1727457147844,0.456756,2718.1,2717.7,7.359]
[1727457148179,0.456756,2718.1,2717.8,0.0530579]
[1727457149584,3.6792,2718.0,2717.8,0.0530579]
[1727457149742,3.67899,2718.2,2717.9,0.05302751]
[1727457150082,4.128779,2718.1,2717.6,10.91362798]
[1727457150278,4.128779,2718.1,2718.0,0.05299712]
[1727457150457,4.128779,2718.1,2717.6,7.23398798]
[1727457150776,0.7807769,2718.0,2717.6,7.23398798]
[1727457151156,0.7807769,2718.0,2717.7,3.67955]
[1727457151486,4.49674,2718.3,2717.7,3.67955]
[1727457151991,3.67904,2718.1,2717.7,3.67955]
[1727457153295,3.67904,2718.1,2717.8,0.0530579]
[1727457154382,3.67904,2718.1,2717.6,10.91370798]
[1727457154692,0.367904,2718.0,2717.9,0.05302751]
[1727457154900,0.367904,2718.0,2717.6,7.23400798]
[1727457155057,0.367904,2718.0,2717.9,0.05302751]
[1727457155257,0.367904,2718.0,2717.6,7.23400798]
[1727457155465,0.4046944,2717.9,2717.6,7.23400798]
[1727457155667,0.4046944,2717.9,2717.7,3.67957]
[1727457155904,0.4046944,2717.9,2717.6,3.55436798]
[1727457155905,3.0,2718.2,2717.6,3.55436798]
[1727457156191,0.8179,2718.3,2717.9,3.67919]
[1727457156192,3.8179,2718.3,2717.9,3.67919]
[1727457156399,0.942876,2718.0,2717.9,3.67919]
[1727457157459,0.942876,2718.0,2717.8,3.67938]
[1727457157964,0.942876,2718.0,2717.9,3.67931]
[1727457158892,0.942876,2718.0,2717.7,3.67956]
[1727457159102,1.412129,2718.0,2717.7,3.67956]
[1727457160563,1.412129,2718.0,2717.6,7.23405798]
[1727457161268,1.412129,2718.0,2717.8,3.67931]
[1727457161481,0.942876,2718.0,2717.7,3.67951]
[1727457162180,4.622126,2718.0,2717.6,3.55436798]
[1727457162380,0.4622126,2717.9,2717.3,3.68001]
[1727457162615,4.47485,2717.8,2717.4,3.67998]
[1727457162784,8.66284386,2717.8,2717.3,3.6801]
[1727457162978,8.66284386,2717.8,2717.2,3.55436798]
[1727457162979,1.30383386,2717.8,2717.2,3.55436798]
[1727457163172,1.30383386,2717.8,2717.3,3.6801]
[1727457163173,3.0,2717.7,2717.3,3.6801]
[1727457163784,6.6796,2717.7,2717.2,7.23450798]
[1727457163968,6.6796,2717.7,2717.2,10.91468798]
[1727457164183,1.115452,2717.6,2717.2,7.23450798]
[1727457164386,1.115452,2717.6,2717.3,3.68012]
[1727457164801,1.115452,2717.6,2717.2,7.23450798]
[1727457165317,1.115452,2717.6,2717.3,3.68009]
[1727457165474,3.0,2717.7,2717.3,3.68009]
[1727457166192,6.67958,2717.7,2717.2,3.68014]
[1727457167300,6.67958,2717.7,2716.9,3.55436798]
[1727457167301,3.67973,2717.6,2716.9,3.55436798]
[1727457167500,0.67362679,2717.5,2717.1,3.68027]
[1727457167670,0.67362679,2717.5,2717.1,10.91493798]
[1727457167879,0.67362679,2717.5,2717.3,3.68005]
[1727457168079,3.0,2717.7,2717.3,3.68005]
[1727457168305,0.7954,2717.8,2717.4,3.73318754]
[1727457169229,3.0,2717.7,2717.4,0.05321754]
[1727457169524,3.747471,2717.7,2717.4,0.05321754]
[1727457169881,7.427131,2717.7,2717.2,3.68025]
[1727457170081,7.427131,2717.7,2717.5,0.05318714]
[1727457170317,7.427131,2717.7,2717.2,3.68025]
[1727457170531,1.1901991,2717.6,2717.2,3.68025]
[1727457170881,4.8699191,2717.6,2717.2,3.68025]
[1727457171082,1.1901991,2717.6,2717.2,3.68016]
[1727457171816,1.1901991,2717.6,2717.3,3.68011]
[1727457172201,0.41901991,2717.5,2717.2,3.68016]
[1727457173117,0.41901991,2717.5,2717.4,3.67998]
[1727457173419,0.7954,2717.8,2717.2,3.68016]
[1727457173622,3.0,2717.7,2717.3,3.68011]
[1727457173915,3.0,2717.7,2717.2,7.36033]
[1727457174144,0.747489,2717.6,2717.2,7.36033]
[1727457174618,0.747489,2717.6,2717.3,3.68011]
[1727457174804,0.747489,2717.6,2717.2,3.68016]
[1727457175123,4.427219,2717.6,2717.1,7.23467798]
[1727457175284,0.7427069,2717.5,2717.1,7.23467798]
[1727457177313,4.4226369,2717.5,2717.1,3.55436798]
[1727457177508,0.30315932,2717.4,2717.1,3.55436798]
[1727457177712,0.47257962,2717.3,2717.1,3.55436798]
[1727457178347,0.7427069,2717.5,2717.1,7.23469798]
[1727457178559,3.942876,2718.0,2717.6,3.67963]
[1727457178717,3.942876,2718.0,2717.1,3.68036]
[1727457178718,0.30336289,2717.9,2717.7,7.23387798]
[1727457179054,0.30336289,2717.8,2717.7,7.23387798]
[1727457179416,0.942876,2718.0,2717.7,7.23387798]
[1727457179655,0.942876,2718.0,2717.8,3.67932]
[1727457180152,0.942876,2718.0,2717.9,7.23367798]
[1727457180736,1.24648296,2718.0,2717.9,7.23367798]
[1727457181230,1.24648296,2718.0,2717.9,7.30725575]
[1727457181431,1.24648296,2718.0,2717.9,7.23367798]
[1727457182855,1.24648296,2718.0,2717.9,3.55436798]
[1727457183047,1.24648296,2718.0,2717.8,3.67942]
[1727457183244,0.942876,2718.0,2717.9,0.05295245]
[1727457183556,1.24643722,2718.0,2717.9,0.05295245]
[1727457184126,1.24643722,2718.0,2717.9,3.73226245]
[1727457184443,1.24643722,2718.0,2717.9,7.28663043]
[1727457185369,1.24643722,2718.0,2717.9,0.05295245]
[1727457185525,0.942876,2718.0,2717.9,0.05295245]
[1727457186163,1.24641175,2718.0,2717.9,0.05295245]
[1727457186375,1.67105293,2718.0,2717.9,0.05295245]
[1727457186533,2.50115293,2718.0,2717.9,0.05295245]
[1727457186734,6.18032293,2718.0,2717.9,0.05295245]
[1727457186938,6.18032293,2718.0,2717.5,3.6798]
[1727457187127,5.87678718,2718.0,2717.9,0.05243777]
[1727457187328,3.67941,2717.9,2717.4,3.67993]
[1727457187566,0.30367525,2717.8,2717.4,3.67993]
[1727457187770,0.30367525,2717.7,2717.4,3.67993]
[1727457188065,0.59333251,2717.9,2717.4,3.6799]
[1727457188066,0.30367525,2717.6,2717.4,3.6799]
[1727457188240,0.30367525,2717.5,2717.4,3.6799]
[1727457188437,0.30367525,2717.5,2717.2,3.68016]
[1727457188641,1.13377525,2717.4,2717.0,3.68043]
[1727457188858,0.30367525,2717.3,2717.0,3.68043]
[1727457189059,0.8301,2717.4,2717.0,3.68043]
[1727457189236,0.3037241,2717.3,2717.0,3.68043]
[1727457189650,0.3037241,2717.2,2716.8,3.68071]
[1727457189852,0.3037241,2717.1,2716.8,7.36142]
[1727457190063,0.3037241,2717.1,2716.6,3.68094]
[1727457190064,0.8065,2717.0,2716.6,3.68094]
[1727457190242,0.3037241,2716.9,2716.6,3.68094]
[1727457190568,0.8065,2717.0,2716.6,3.68094]
[1727457190749,1.31172088,2717.0,2716.4,11.03124]
[1727457190956,3.73727788,2716.9,2716.4,3.68124]
[1727457191640,3.68074,2716.9,2716.4,3.68124]
[1727457191963,3.68088,2716.8,2716.3,3.68146]
[1727457192476,0.7604,2716.6,2716.1,3.68165]
[1727457192679,5.253795,2716.6,2716.0,7.23613798]
[1727457192874,5.253795,2716.6,2715.8,3.68205]
[1727457192875,3.68134,2716.4,2715.8,10.91847798]